[Event "Mistrovství Čech mládeže 2023 - HD14"]
[Site "Harrachov, Czech Republic"]
[Date "2023.10.23"]
[Round "4.16"]
[White "Mojžíšová, Barbora"]
[Black "Mikulka, Martin Michael"]
[Result "0-1"]
[TimeControl "90m + 30s"]
[WhiteElo "1242"]
[BlackElo "1826"]

1. e4 {[%clk 01:30:58]} {[%emt 00:00:02]} e6 {[%clk 01:30:59]} {[%emt
00:00:01]} 2. d4 {[%clk 01:31:20]} {[%emt 00:00:07]} d5 {[%clk 01:31:25]}
{[%emt 00:00:04]} 3. Nc3 {[%clk 01:31:44]} {[%emt 00:00:07]} Nf6 {[%clk
01:31:50]} {[%emt 00:00:05]} 4. e5 {[%clk 01:32:03]} {[%emt 00:00:11]} Nfd7
{[%clk 01:32:15]} {[%emt 00:00:04]} 5. f4 {[%clk 01:32:16]} {[%emt 00:00:17]}
c5 {[%clk 01:32:40]} {[%emt 00:00:06]} 6. Nf3 {[%clk 01:32:11]} {[%emt
00:00:35]} Nc6 {[%clk 01:33:01]} {[%emt 00:00:08]} 7. Be3 {[%clk 01:32:17]}
{[%emt 00:00:23]} Be7 {[%clk 01:32:54]} {[%emt 00:00:37]} 8. Qd2 {[%clk
01:31:33]} {[%emt 00:01:14]} a6 {[%clk 01:31:32]} {[%emt 00:01:53]} 9. O-O-O
{[%clk 01:27:32]} {[%emt 00:04:31]} c4 {[%clk 01:26:37]} {[%emt 00:05:25]} 10.
g4 {[%clk 01:24:12]} {[%emt 00:03:49]} b5 {[%clk 01:26:05]} {[%emt 00:01:02]}
11. Nb1 {[%clk 01:07:38]} {[%emt 00:17:05]} Nb4 {[%clk 01:23:17]} {[%emt
00:03:18]} 12. Nc3 {[%clk 01:04:00]} {[%emt 00:04:07]} Qa5 {[%clk 01:20:54]}
{[%emt 00:02:54]} 13. a3 {[%clk 01:01:41]} {[%emt 00:02:49]} Nc6 {[%clk
01:21:07]} {[%emt 00:00:17]} 14. Nb1 {[%clk 00:55:01]} {[%emt 00:07:10]} b4
{[%clk 01:18:54]} {[%emt 00:02:43]} 15. Re1 {[%clk 00:44:41]} {[%emt 00:10:49]}
c3 {[%clk 01:14:11]} {[%emt 00:05:13]} 16. bxc3 {[%clk 00:39:33]} {[%emt
00:05:39]} bxa3 {[%clk 01:13:13]} {[%emt 00:01:28]} 17. Nxa3 {[%clk 00:38:38]}
{[%emt 00:01:25]} Qxa3+ {[%clk 01:12:01]} {[%emt 00:01:42]} 18. Kd1 {[%clk
00:38:37]} {[%emt 00:00:29]} Rb8 {[%clk 01:09:50]} {[%emt 00:02:43]} 19. Ke2
{[%clk 00:37:01]} {[%emt 00:02:06]} Qa5 {[%clk 01:04:25]} {[%emt 00:05:57]} 20.
Bg2 {[%clk 00:36:08]} {[%emt 00:01:21]} Qc7 {[%clk 01:03:19]} {[%emt 00:01:38]}
21. Kf2 {[%clk 00:31:52]} {[%emt 00:04:45]} Nb6 {[%clk 01:02:54]} {[%emt
00:00:56]} 22. Rhf1 {[%clk 00:31:34]} {[%emt 00:00:48]} Nc4 {[%clk 01:03:00]}
{[%emt 00:00:24]} 23. Qd3 {[%clk 00:30:23]} {[%emt 00:01:40]} a5 {[%clk
01:01:55]} {[%emt 00:01:37]} 24. Ra1 {[%clk 00:30:17]} {[%emt 00:00:35]} Ba6
{[%clk 01:01:40]} {[%emt 00:00:46]} 25. Kg1 {[%clk 00:28:57]} {[%emt 00:01:50]}
Nxe3 {[%clk 01:01:00]} {[%emt 00:01:10]} 26. Qxe3 {[%clk 00:26:22]} {[%emt
00:03:05]} Bxf1 {[%clk 01:01:22]} {[%emt 00:00:08]} 27. Bxf1 {[%clk 00:26:34]}
{[%emt 00:00:19]} Rb2 {[%clk 00:59:33]} {[%emt 00:02:19]} 28. Bd3 {[%clk
00:26:02]} {[%emt 00:01:02]} Qb6 {[%clk 00:58:12]} {[%emt 00:01:51]} 29. Nd2
{[%clk 00:25:48]} {[%emt 00:00:42]} O-O {[%clk 00:57:22]} {[%emt 00:01:21]} 30.
Qh3 {[%clk 00:25:46]} {[%emt 00:00:30]} g6 {[%clk 00:57:22]} {[%emt 00:00:32]}
31. Kg2 {[%clk 00:25:41]} {[%emt 00:01:03]} Rxc2 {[%clk 00:38:54]} {[%emt
00:19:31]} 32. Bxc2 {[%clk 00:21:15]} {[%emt 00:04:55]} Qb2 {[%clk 00:39:18]}
{[%emt 00:00:06]} 33. Rf1 {[%clk 00:16:31]} {[%emt 00:05:14]} Qxc2 {[%clk
00:39:39]} {[%emt 00:00:10]} 34. Rf2 {[%clk 00:16:31]} {[%emt 00:00:28]} Kh8
{[%clk 00:35:45]} {[%emt 00:04:25]} 35. Qh6 {[%clk 00:16:00]} {[%emt 00:01:01]}
Rg8 {[%clk 00:26:38]} {[%emt 00:09:37]} 36. Nf3 {[%clk 00:11:34]} {[%emt
00:04:56]} Qxc3 {[%clk 00:24:55]} {[%emt 00:02:14]} 37. Ng5 {[%clk 00:08:54]}
{[%emt 00:03:09]} Bxg5 {[%clk 00:22:20]} {[%emt 00:03:05]} 38. Qxg5 {[%clk
00:08:16]} {[%emt 00:01:07]} Rb8 {[%clk 00:21:36]} {[%emt 00:01:14]} 39. f5
{[%clk 00:07:18]} {[%emt 00:01:28]} Rb2 {[%clk 00:10:31]} {[%emt 00:11:35]} 40.
Qh6 {[%clk 00:05:38]} {[%emt 00:02:09]} Rxf2+ {[%clk 00:09:54]} {[%emt
00:01:08]} 41. Kxf2 {[%clk 00:05:57]} {[%emt 00:00:11]} Qxd4+ {[%clk 00:08:27]}
{[%emt 00:01:57]} 42. Kg2 {[%clk 00:06:11]} {[%emt 00:00:15]} Qb2+ {[%clk
00:08:47]} {[%emt 00:00:12]} 43. Kh3 {[%clk 00:06:16]} {[%emt 00:00:25]} Qa3+
{[%clk 00:08:43]} {[%emt 00:00:34]} 44. Kh4 {[%clk 00:06:21]} {[%emt 00:00:17]}
Kg8 {[%clk 00:09:03]} {[%emt 00:00:17]} 45. f6 {[%clk 00:05:54]} {[%emt
00:00:57]} Qf8 {[%clk 00:09:27]} {[%emt 00:00:07]} 46. Qd2 {[%clk 00:05:54]}
{[%emt 00:00:29]} Nxe5 {[%clk 00:08:54]} {[%emt 00:01:03]} 47. Qxa5 {[%clk
00:06:06]} {[%emt 00:00:19]} Qh6+ {[%clk 00:07:45]} {[%emt 00:01:39]} 48. Kg3
{[%clk 00:06:22]} {[%emt 00:00:14]} Qe3+ {[%clk 00:07:54]} {[%emt 00:00:20]} 49.
Kg2 {[%clk 00:06:27]} {[%emt 00:00:24]} Qe2+ {[%clk 00:07:48]} {[%emt
00:00:38]} 50. Kg3 {[%clk 00:06:29]} {[%emt 00:00:25]} Qf3+ {[%clk 00:08:11]}
{[%emt 00:00:10]} 51. Kh4 {[%clk 00:06:48]} {[%emt 00:00:11]} Qxg4# {[%emt
00:00:06]} 0-1

[Event "Mistrovství Čech mládeže 2023 - HD14"]
[Site "Harrachov, Czech Republic"]
[Date "2023.10.23"]
[Round "4.17"]
[White "Stibor, Ondřej"]
[Black "Rudlof, Adam"]
[Result "1-0"]
[TimeControl "90m + 30s"]
[WhiteElo "1170"]
[BlackElo "1639"]

1. e4 {[%clk 01:30:56]} {[%emt 00:00:03]} c5 {[%clk 01:30:50]} {[%emt
00:00:11]} 2. Nf3 {[%clk 01:31:10]} {[%emt 00:00:16]} Nc6 {[%clk 01:31:15]}
{[%emt 00:00:04]} 3. d4 {[%clk 01:31:17]} {[%emt 00:00:23]} cxd4 {[%clk
01:31:41]} {[%emt 00:00:05]} 4. Nxd4 {[%clk 01:31:34]} {[%emt 00:00:14]} g6
{[%clk 01:32:06]} {[%emt 00:00:05]} 5. Nc3 {[%clk 01:31:54]} {[%emt 00:00:10]}
Bg7 {[%clk 01:32:28]} {[%emt 00:00:09]} 6. Be3 {[%clk 01:32:17]} {[%emt
00:00:06]} Nf6 {[%clk 01:32:56]} {[%emt 00:00:03]} 7. f3 {[%clk 01:32:38]}
{[%emt 00:00:09]} O-O {[%clk 01:33:22]} {[%emt 00:00:04]} 8. Qd2 {[%clk
01:33:01]} {[%emt 00:00:08]} d5 {[%clk 01:33:46]} {[%emt 00:00:06]} 9. Nxc6
{[%clk 01:26:19]} {[%emt 00:07:12]} bxc6 {[%clk 01:34:08]} {[%emt 00:00:08]} 10.
O-O-O {[%clk 01:25:04]} {[%emt 00:01:45]} Qa5 {[%clk 01:31:10]} {[%emt
00:03:24]} 11. exd5 {[%clk 01:18:28]} {[%emt 00:07:10]} cxd5 {[%clk 01:28:02]}
{[%emt 00:03:38]} 12. Nxd5 {[%clk 01:15:32]} {[%emt 00:03:27]} Qxa2 {[%clk
01:24:40]} {[%emt 00:03:51]} 13. Nxe7+ {[%clk 01:15:41]} {[%emt 00:00:21]} Kh8
{[%clk 01:25:01]} {[%emt 00:00:08]} 14. Qb4 {[%clk 01:13:00]} {[%emt 00:03:11]}
Be6 {[%clk 01:05:58]} {[%emt 00:19:33]} 15. Qa3 {[%clk 01:08:14]} {[%emt
00:05:17]} Qxa3 {[%clk 01:05:00]} {[%emt 00:01:29]} 16. bxa3 {[%clk 01:06:39]}
{[%emt 00:02:05]} Rfe8 {[%clk 01:04:42]} {[%emt 00:00:48]} 17. Nc6 {[%clk
01:05:59]} {[%emt 00:01:10]} Bd7 {[%clk 01:04:59]} {[%emt 00:00:13]} 18. Rxd7
{[%clk 00:59:45]} {[%emt 00:06:44]} Nxd7 {[%clk 01:04:34]} {[%emt 00:00:54]} 19.
Bxa7 {[%clk 01:00:05]} {[%emt 00:00:10]} Ne5 {[%clk 00:45:52]} {[%emt
00:19:11]} 20. Nxe5 {[%clk 00:58:15]} {[%emt 00:02:22]} Rxa7 {[%clk 00:46:11]}
{[%emt 00:00:10]} 21. Nc4 {[%clk 00:56:47]} {[%emt 00:01:58]} Bc3 {[%clk
00:45:06]} {[%emt 00:01:36]} 22. Bd3 {[%clk 00:56:47]} {[%emt 00:00:29]} Rae7
{[%clk 00:44:55]} {[%emt 00:00:39]} 23. Kb1 {[%clk 00:56:45]} {[%emt 00:00:34]}
Re1+ {[%clk 00:41:04]} {[%emt 00:04:21]} 24. Rxe1 {[%clk 00:55:56]} {[%emt
00:01:19]} Rxe1+ {[%clk 00:41:25]} {[%emt 00:00:09]} 25. Ka2 {[%clk 00:56:23]}
{[%emt 00:00:03]} Rg1 {[%clk 00:41:36]} {[%emt 00:00:17]} 26. Kb3 {[%clk
00:56:01]} {[%emt 00:00:53]} Bd4 {[%clk 00:41:26]} {[%emt 00:00:38]} 27. a4
{[%clk 00:56:21]} {[%emt 00:00:13]} Rxg2 {[%clk 00:41:21]} {[%emt 00:00:34]} 28.
a5 {[%clk 00:56:19]} {[%emt 00:00:32]} Rg1 {[%clk 00:30:37]} {[%emt 00:10:43]}
29. a6 {[%clk 00:44:16]} {[%emt 00:12:34]} Ra1 {[%clk 00:25:04]} {[%emt
00:06:32]} 30. Nd6 {[%clk 00:40:50]} {[%emt 00:03:57]} Kg7 {[%clk 00:23:24]}
{[%emt 00:02:09]} 31. Kb4 {[%clk 00:38:53]} {[%emt 00:02:28]} Kf8 {[%clk
00:20:09]} {[%emt 00:03:43]} 32. Kb5 {[%clk 00:37:12]} {[%emt 00:02:13]} Ke7
{[%clk 00:19:06]} {[%emt 00:01:32]} 33. Kc6 {[%clk 00:35:39]} {[%emt 00:02:04]}
Ra5 {[%clk 00:12:05]} {[%emt 00:07:16]} 34. Nc8+ {[%clk 00:32:30]} {[%emt
00:03:55]} Kd8 {[%clk 00:11:43]} {[%emt 00:00:49]} 35. Nb6 {[%clk 00:32:52]}
{[%emt 00:00:10]} Rc5+ {[%clk 00:05:37]} {[%emt 00:06:36]} 36. Kd6 {[%clk
00:33:14]} {[%emt 00:00:08]} Rc3 {[%clk 00:02:47]} {[%emt 00:03:16]} 37. Nd5
{[%clk 00:31:11]} {[%emt 00:02:37]} Rc5 {[%clk 00:01:21]} {[%emt 00:01:57]} 38.
Nb4 {[%clk 00:29:46]} {[%emt 00:02:28]} Kc8 {[%clk 00:00:38]} {[%emt 00:01:41]}
39. Nc6 {[%clk 00:30:15]} {[%emt 00:00:01]} Bg1 {[%clk 00:00:35]} {[%emt
00:00:32]} 40. Be4 {[%clk 00:27:32]} {[%emt 00:03:13]} Rc3 {[%clk 00:00:47]}
{[%emt 00:00:18]} 41. a7 {[%clk 00:25:27]} {[%emt 00:02:35]} Kb7 {[%clk
00:00:57]} {[%emt 00:00:20]} 42. Nd4+ {[%clk 00:25:37]} {[%emt 00:00:20]} Kb6
{[%clk 00:00:42]} {[%emt 00:00:45]} 43. a8=Q {[%clk 00:25:03]} {[%emt
00:01:03]} Bxh2 {[%clk 00:00:55]} {[%emt 00:00:17]} 44. Kd7 {[%clk 00:22:59]}
{[%emt 00:02:33]} 1-0

[Event "Mistrovství Čech mládeže 2023 - HD14"]
[Site "Harrachov, Czech Republic"]
[Date "2023.10.23"]
[Round "4.18"]
[White "Seidl, Václav"]
[Black "Ausperger, Vít"]
[Result "1-0"]
[TimeControl "90m + 30s"]
[WhiteElo "1478"]
[BlackElo "1302"]

1. e4 {[%clk 01:30:56]} {[%emt 00:00:04]} e5 {[%clk 01:30:54]} {[%emt
00:00:07]} 2. Nf3 {[%clk 01:31:21]} {[%emt 00:00:04]} Nc6 {[%clk 01:31:18]}
{[%emt 00:00:07]} 3. d4 {[%clk 01:31:46]} {[%emt 00:00:04]} exd4 {[%clk
01:31:36]} {[%emt 00:00:12]} 4. Bc4 {[%clk 01:32:10]} {[%emt 00:00:06]} Bc5
{[%clk 01:30:38]} {[%emt 00:01:28]} 5. c3 {[%clk 01:32:03]} {[%emt 00:00:37]}
dxc3 {[%clk 01:27:29]} {[%emt 00:03:39]} 6. Bxf7+ {[%clk 01:31:20]} {[%emt
00:01:13]} Kxf7 {[%clk 01:25:28]} {[%emt 00:02:31]} 7. Qd5+ {[%clk 01:31:40]}
{[%emt 00:00:10]} Ke8 {[%clk 01:25:11]} {[%emt 00:00:47]} 8. Qh5+ {[%clk
01:31:58]} {[%emt 00:00:11]} g6 {[%clk 01:23:29]} {[%emt 00:02:12]} 9. Qxc5
{[%clk 01:32:12]} {[%emt 00:00:18]} d6 {[%clk 01:18:14]} {[%emt 00:05:45]} 10.
Qxc3 {[%clk 01:25:01]} {[%emt 00:07:40]} Qf6 {[%clk 01:17:32]} {[%emt
00:01:12]} 11. Qc2 {[%clk 01:22:54]} {[%emt 00:02:36]} h6 {[%clk 01:14:28]}
{[%emt 00:03:34]} 12. Bd2 {[%clk 01:20:08]} {[%emt 00:03:16]} Qf7 {[%clk
01:11:33]} {[%emt 00:03:25]} 13. O-O {[%clk 01:18:47]} {[%emt 00:01:52]} Bg4
{[%clk 01:02:23]} {[%emt 00:09:41]} 14. Bc3 {[%clk 01:18:31]} {[%emt 00:00:46]}
Rh7 {[%clk 01:00:40]} {[%emt 00:02:13]} 15. Nbd2 {[%clk 01:13:59]} {[%emt
00:05:02]} Kf8 {[%clk 00:56:19]} {[%emt 00:04:51]} 16. e5 {[%clk 01:11:41]}
{[%emt 00:02:48]} dxe5 {[%clk 00:53:58]} {[%emt 00:02:51]} 17. Nxe5 {[%clk
01:08:43]} {[%emt 00:03:28]} Nxe5 {[%clk 00:53:06]} {[%emt 00:01:22]} 18. Bxe5
{[%clk 01:08:57]} {[%emt 00:00:16]} Re8 {[%clk 00:45:58]} {[%emt 00:07:37]} 19.
f3 {[%clk 01:07:26]} {[%emt 00:01:58]} Bf5 {[%clk 00:45:04]} {[%emt 00:01:28]}
20. Qc3 {[%clk 01:06:54]} {[%emt 00:01:01]} Qd7 {[%clk 00:38:30]} {[%emt
00:07:04]} 21. g4 {[%clk 01:00:02]} {[%emt 00:07:21]} Bd3 {[%clk 00:37:31]}
{[%emt 00:01:31]} 22. Rfe1 {[%clk 00:56:24]} {[%emt 00:04:07]} Rhe7 {[%clk
00:35:50]} {[%emt 00:02:12]} 23. Re3 {[%clk 00:54:53]} {[%emt 00:02:01]} Qd5
{[%clk 00:32:03]} {[%emt 00:04:17]} 24. Bg7+ {[%clk 00:52:56]} {[%emt
00:02:25]} Rxg7 {[%clk 00:26:52]} {[%emt 00:05:42]} 25. Rxe8+ {[%clk 00:53:12]}
{[%emt 00:00:15]} Kxe8 {[%clk 00:26:14]} {[%emt 00:01:07]} 26. Qxg7 {[%clk
00:53:12]} {[%emt 00:00:31]} Qe6 {[%clk 00:22:18]} {[%emt 00:04:26]} 27. Qc3
{[%clk 00:50:56]} {[%emt 00:02:44]} Qe3+ {[%clk 00:19:23]} {[%emt 00:03:26]} 28.
Kg2 {[%clk 00:49:50]} {[%emt 00:01:35]} h5 {[%clk 00:18:27]} {[%emt 00:01:28]}
29. gxh5 {[%clk 00:47:33]} {[%emt 00:02:47]} gxh5 {[%clk 00:13:53]} {[%emt
00:05:05]} 30. Ne4 {[%clk 00:45:59]} {[%emt 00:02:03]} Qe2+ {[%clk 00:12:55]}
{[%emt 00:01:28]} 31. Nf2 {[%clk 00:43:14]} {[%emt 00:03:15]} Qe6 {[%clk
00:08:29]} {[%emt 00:04:56]} 32. Qxd3 {[%clk 00:41:42]} {[%emt 00:02:03]} 1-0

[Event "Mistrovství Čech mládeže 2023 - HD14"]
[Site "Harrachov, Czech Republic"]
[Date "2023.10.24"]
[Round "5.1"]
[White "Váňa, Jan"]
[Black "Bělaška, Adam"]
[Result "1-0"]
[TimeControl "90m + 30s"]
[WhiteElo "1969"]
[BlackElo "1503"]

1. e4 {[%clk 01:30:57]} {[%emt 00:00:02]} c5 {[%clk 01:30:53]} {[%emt
00:00:08]} 2. Nc3 {[%clk 01:31:19]} {[%emt 00:00:07]} d6 {[%clk 01:30:36]}
{[%emt 00:00:46]} 3. d4 {[%clk 01:31:42]} {[%emt 00:00:08]} cxd4 {[%clk
01:30:39]} {[%emt 00:00:26]} 4. Qxd4 {[%clk 01:32:06]} {[%emt 00:00:06]} Nc6
{[%clk 01:30:58]} {[%emt 00:00:11]} 5. Qd2 {[%clk 01:32:30]} {[%emt 00:00:06]}
Nf6 {[%clk 01:30:49]} {[%emt 00:00:39]} 6. b3 {[%clk 01:32:52]} {[%emt
00:00:09]} g6 {[%clk 01:30:47]} {[%emt 00:00:31]} 7. Bb2 {[%clk 01:33:10]}
{[%emt 00:00:13]} Bg7 {[%clk 01:31:09]} {[%emt 00:00:08]} 8. O-O-O {[%clk
01:33:30]} {[%emt 00:00:10]} O-O {[%clk 01:31:19]} {[%emt 00:00:20]} 9. f3
{[%clk 01:33:34]} {[%emt 00:00:26]} Bd7 {[%clk 01:30:24]} {[%emt 00:01:25]} 10.
Kb1 {[%clk 01:33:42]} {[%emt 00:00:21]} Rc8 {[%clk 01:30:18]} {[%emt 00:00:36]}
11. g4 {[%clk 01:31:44]} {[%emt 00:02:29]} h5 {[%clk 01:27:47]} {[%emt
00:03:01]} 12. h4 {[%clk 01:26:23]} {[%emt 00:05:51]} hxg4 {[%clk 01:23:39]}
{[%emt 00:04:37]} 13. Be2 {[%clk 01:09:23]} {[%emt 00:17:30]} gxf3 {[%clk
01:17:53]} {[%emt 00:06:17]} 14. Bxf3 {[%clk 01:01:14]} {[%emt 00:08:39]} Ne5
{[%clk 01:17:26]} {[%emt 00:00:57]} 15. h5 {[%clk 00:58:40]} {[%emt 00:03:03]}
Nxf3 {[%clk 01:16:44]} {[%emt 00:01:12]} 16. Nxf3 {[%clk 00:58:52]} {[%emt
00:00:18]} Nxh5 {[%clk 01:14:45]} {[%emt 00:02:29]} 17. Rxh5 {[%clk 00:38:22]}
{[%emt 00:21:00]} gxh5 {[%clk 01:12:58]} {[%emt 00:02:16]} 18. Nd5 {[%clk
00:27:11]} {[%emt 00:11:42]} f6 {[%clk 01:11:46]} {[%emt 00:01:41]} 19. Rg1
{[%clk 00:22:24]} {[%emt 00:05:18]} Rf7 {[%clk 01:10:04]} {[%emt 00:02:12]} 20.
Nd4 {[%clk 00:19:29]} {[%emt 00:03:25]} Kf8 {[%clk 01:08:31]} {[%emt 00:02:01]}
21. Nf4 {[%clk 00:17:47]} {[%emt 00:02:13]} Qb6 {[%clk 01:01:59]} {[%emt
00:07:02]} 22. Nfe6+ {[%clk 00:16:30]} {[%emt 00:01:46]} Bxe6 {[%clk 01:00:35]}
{[%emt 00:01:54]} 23. Nxe6+ {[%clk 00:16:54]} {[%emt 00:00:06]} Ke8 {[%clk
00:56:40]} {[%emt 00:04:25]} 24. Nxg7+ {[%clk 00:14:14]} {[%emt 00:03:10]} Kd7
{[%clk 00:56:53]} {[%emt 00:00:17]} 25. Bd4 {[%clk 00:12:25]} {[%emt 00:02:19]}
Qc6 {[%clk 00:56:35]} {[%emt 00:00:48]} 26. Qd3 {[%clk 00:12:14]} {[%emt
00:00:41]} a6 {[%clk 00:56:10]} {[%emt 00:00:55]} 27. Qh3+ {[%clk 00:09:42]}
{[%emt 00:03:01]} Kd8 {[%clk 00:53:18]} {[%emt 00:03:23]} 28. Ne6+ {[%clk
00:06:51]} {[%emt 00:03:21]} Kd7 {[%clk 00:52:55]} {[%emt 00:00:52]} 29. Nd8+
{[%clk 00:06:39]} {[%emt 00:00:43]} 1-0

[Event "Mistrovství Čech mládeže 2023 - HD14"]
[Site "Harrachov, Czech Republic"]
[Date "2023.10.24"]
[Round "5.2"]
[White "Křivka, Matěj"]
[Black "Roubal, Matyáš"]
[Result "1/2-1/2"]
[TimeControl "90m + 30s"]
[WhiteElo "1665"]
[BlackElo "1884"]

1. d4 {[%clk 01:30:57]} {[%emt 00:00:02]} Nf6 {[%clk 01:30:51]} {[%emt
00:00:09]} 2. c4 {[%clk 01:31:22]} {[%emt 00:00:05]} g6 {[%clk 01:31:19]}
{[%emt 00:00:02]} 3. Nc3 {[%clk 01:31:40]} {[%emt 00:00:12]} Bg7 {[%clk
01:31:45]} {[%emt 00:00:04]} 4. e4 {[%clk 01:32:05]} {[%emt 00:00:05]} d6
{[%clk 01:32:13]} {[%emt 00:00:03]} 5. f4 {[%clk 01:31:56]} {[%emt 00:00:38]}
O-O {[%clk 01:32:36]} {[%emt 00:00:07]} 6. Nf3 {[%clk 01:32:10]} {[%emt
00:00:16]} c5 {[%clk 01:31:14]} {[%emt 00:01:52]} 7. d5 {[%clk 01:32:16]}
{[%emt 00:00:24]} Re8 {[%clk 01:27:30]} {[%emt 00:04:15]} 8. Bd3 {[%clk
01:27:03]} {[%emt 00:05:43]} e6 {[%clk 01:23:58]} {[%emt 00:04:01]} 9. O-O
{[%clk 01:22:16]} {[%emt 00:05:16]} exd5 {[%clk 01:24:10]} {[%emt 00:00:18]} 10.
cxd5 {[%clk 01:16:01]} {[%emt 00:06:45]} c4 {[%clk 01:23:34]} {[%emt 00:01:06]}
11. Bc2 {[%clk 01:13:05]} {[%emt 00:03:26]} b5 {[%clk 01:22:02]} {[%emt
00:02:03]} 12. a3 {[%clk 01:07:22]} {[%emt 00:06:14]} Qb6+ {[%clk 01:19:19]}
{[%emt 00:03:12]} 13. Kh1 {[%clk 01:05:10]} {[%emt 00:02:41]} Bg4 {[%clk
01:12:32]} {[%emt 00:07:17]} 14. h3 {[%clk 00:57:12]} {[%emt 00:08:28]} Bxf3
{[%clk 01:12:55]} {[%emt 00:00:07]} 15. Qxf3 {[%clk 00:57:30]} {[%emt
00:00:12]} Nbd7 {[%clk 01:12:43]} {[%emt 00:00:42]} 16. Be3 {[%clk 00:56:13]}
{[%emt 00:01:47]} Qb7 {[%clk 01:11:31]} {[%emt 00:01:42]} 17. Rae1 {[%clk
00:54:08]} {[%emt 00:02:34]} Rac8 {[%clk 01:06:23]} {[%emt 00:05:38]} 18. Bd4
{[%clk 00:49:12]} {[%emt 00:05:26]} Nh5 {[%clk 01:02:41]} {[%emt 00:04:13]} 19.
Bxg7 {[%clk 00:49:09]} {[%emt 00:00:32]} Nxg7 {[%clk 01:02:50]} {[%emt
00:00:21]} 20. g4 {[%clk 00:47:36]} {[%emt 00:02:03]} f6 {[%clk 01:02:48]}
{[%emt 00:00:31]} 21. Ne2 {[%clk 00:46:11]} {[%emt 00:01:55]} h6 {[%clk
01:00:47]} {[%emt 00:02:31]} 22. Ng3 {[%clk 00:44:53]} {[%emt 00:01:48]} Rf8
{[%clk 00:59:57]} {[%emt 00:01:20]} 23. h4 {[%clk 00:41:05]} {[%emt 00:04:18]}
Rf7 {[%clk 00:51:20]} {[%emt 00:09:07]} 24. h5 {[%clk 00:34:59]} {[%emt
00:06:36]} g5 {[%clk 00:51:36]} {[%emt 00:00:13]} 25. Qg2 {[%clk 00:27:28]}
{[%emt 00:08:01]} gxf4 {[%clk 00:46:07]} {[%emt 00:05:59]} 26. Rxf4 {[%clk
00:27:12]} {[%emt 00:00:46]} Ne5 {[%clk 00:46:08]} {[%emt 00:00:30]} 27. Ref1
{[%clk 00:25:51]} {[%emt 00:01:51]} Qe7 {[%clk 00:45:53]} {[%emt 00:00:45]} 28.
Qf2 {[%clk 00:25:30]} {[%emt 00:00:51]} Rcf8 {[%clk 00:45:45]} {[%emt
00:00:38]} 29. Ne2 {[%clk 00:24:37]} {[%emt 00:01:23]} Qd7 {[%clk 00:44:12]}
{[%emt 00:02:03]} 30. Qh4 {[%clk 00:23:58]} {[%emt 00:01:09]} 1/2-1/2

[Event "Mistrovství Čech mládeže 2023 - HD14"]
[Site "Harrachov, Czech Republic"]
[Date "2023.10.24"]
[Round "5.3"]
[White "Ježek, Jakub"]
[Black "Migalko, Dmitriy"]
[Result "1/2-1/2"]
[TimeControl "90m + 30s"]
[WhiteElo "1642"]
[BlackElo "1842"]

1. e4 {[%clk 01:30:53]} {[%emt 00:00:05]} c5 {[%clk 01:30:36]} {[%emt
00:00:24]} 2. Nf3 {[%clk 01:31:13]} {[%emt 00:00:10]} e6 {[%clk 01:30:31]}
{[%emt 00:00:35]} 3. g3 {[%clk 01:31:41]} {[%emt 00:00:02]} Nc6 {[%clk
01:30:29]} {[%emt 00:00:31]} 4. Bg2 {[%clk 01:31:52]} {[%emt 00:00:19]} Nf6
{[%clk 01:30:04]} {[%emt 00:00:55]} 5. Qe2 {[%clk 01:32:12]} {[%emt 00:00:12]}
g6 {[%clk 01:28:04]} {[%emt 00:02:30]} 6. e5 {[%clk 01:32:21]} {[%emt
00:00:21]} Nd5 {[%clk 01:27:42]} {[%emt 00:00:51]} 7. O-O {[%clk 01:31:25]}
{[%emt 00:01:26]} Bg7 {[%clk 01:27:09]} {[%emt 00:01:03]} 8. c3 {[%clk
01:29:42]} {[%emt 00:02:13]} O-O {[%clk 01:25:56]} {[%emt 00:01:43]} 9. d4
{[%clk 01:29:07]} {[%emt 00:01:06]} cxd4 {[%clk 01:25:18]} {[%emt 00:01:08]} 10.
cxd4 {[%clk 01:25:31]} {[%emt 00:04:06]} d6 {[%clk 01:23:50]} {[%emt 00:01:57]}
11. Na3 {[%clk 01:19:57]} {[%emt 00:06:04]} dxe5 {[%clk 01:21:45]} {[%emt
00:02:36]} 12. dxe5 {[%clk 01:20:06]} {[%emt 00:00:20]} a6 {[%clk 01:17:13]}
{[%emt 00:05:02]} 13. Nc4 {[%clk 01:13:47]} {[%emt 00:06:48]} b5 {[%clk
01:15:18]} {[%emt 00:02:26]} 14. Ne3 {[%clk 01:06:58]} {[%emt 00:07:18]} Nde7
{[%clk 00:57:00]} {[%emt 00:18:47]} 15. a4 {[%clk 01:00:44]} {[%emt 00:06:47]}
bxa4 {[%clk 00:49:44]} {[%emt 00:07:45]} 16. Rxa4 {[%clk 00:55:11]} {[%emt
00:06:03]} Qb6 {[%clk 00:48:59]} {[%emt 00:01:14]} 17. Rd1 {[%clk 00:51:12]}
{[%emt 00:04:30]} Bb7 {[%clk 00:47:33]} {[%emt 00:01:55]} 18. Ng4 {[%clk
00:46:12]} {[%emt 00:05:31]} Rfd8 {[%clk 00:42:37]} {[%emt 00:05:26]} 19. Rxd8+
{[%clk 00:38:47]} {[%emt 00:07:56]} Rxd8 {[%clk 00:42:55]} {[%emt 00:00:12]} 20.
Nh6+ {[%clk 00:39:04]} {[%emt 00:00:10]} Kf8 {[%clk 00:39:05]} {[%emt
00:04:23]} 21. Nxf7 {[%clk 00:36:35]} {[%emt 00:03:00]} Kxf7 {[%clk 00:38:26]}
{[%emt 00:01:08]} 22. Ng5+ {[%clk 00:37:02]} {[%emt 00:00:03]} Kg8 {[%clk
00:38:37]} {[%emt 00:00:19]} 23. Nxe6 {[%clk 00:37:06]} {[%emt 00:00:26]} Rd7
{[%clk 00:36:57]} {[%emt 00:02:10]} 24. Nxg7 {[%clk 00:36:11]} {[%emt
00:01:25]} Qb3 {[%clk 00:34:20]} {[%emt 00:03:08]} 25. Ra3 {[%clk 00:21:49]}
{[%emt 00:14:52]} Qd1+ {[%clk 00:33:04]} {[%emt 00:01:46]} 26. Bf1 {[%clk
00:21:17]} {[%emt 00:01:02]} Qxe2 {[%clk 00:33:05]} {[%emt 00:00:29]} 27. Bxe2
{[%clk 00:21:45]} {[%emt 00:00:02]} Kxg7 {[%clk 00:31:29]} {[%emt 00:02:06]} 28.
e6 {[%clk 00:20:45]} {[%emt 00:01:29]} Rd6 {[%clk 00:31:12]} {[%emt 00:00:47]}
29. Bf4 {[%clk 00:19:56]} {[%emt 00:01:20]} Rxe6 {[%clk 00:30:35]} {[%emt
00:01:06]} 30. Bxa6 {[%clk 00:20:14]} {[%emt 00:00:12]} Bxa6 {[%clk 00:29:24]}
{[%emt 00:01:42]} 31. Rxa6 {[%clk 00:20:35]} {[%emt 00:00:08]} Re2 {[%clk
00:27:04]} {[%emt 00:02:48]} 32. Rb6 {[%clk 00:19:48]} {[%emt 00:01:18]} Rc2
{[%clk 00:26:29]} {[%emt 00:01:04]} 33. Rb7 {[%clk 00:19:16]} {[%emt 00:01:03]}
1/2-1/2